[Event "Early-Titled-Tuesday-Blitz-February-06-2024"]
[Site "Chess.com"]
[Date "2024.02.06"]
[Round "3"]
[White "Herman-NY"]
[Black "baki83"]
[Result "0-1"]
[WhiteElo "2498"]
[BlackElo "2808"]
[TimeControl "180+1"]
[EndTime "8:28:00 PST"]
[Termination "baki83 won on time"]

1. e4 {[%clk 0:03:00.9]} 1... c5 {[%clk 0:02:58.9]} 2. Nf3 {[%clk 0:03:01.3]}
2... d6 {[%clk 0:02:58.5]} 3. d4 {[%clk 0:03:01.1]} 3... cxd4 {[%clk 0:02:58.6]}
4. Nxd4 {[%clk 0:03:02]} 4... Nf6 {[%clk 0:02:58.7]} 5. Nc3 {[%clk 0:03:02.7]}
5... Nc6 {[%clk 0:02:59.2]} 6. Bc4 {[%clk 0:03:02.6]} 6... e6 {[%clk 0:02:58.7]}
7. Be3 {[%clk 0:03:02.8]} 7... a6 {[%clk 0:02:57.2]} 8. Qe2 {[%clk 0:03:03]}
8... Bd7 {[%clk 0:02:57.4]} 9. O-O-O {[%clk 0:03:02]} 9... Qc7 {[%clk 0:02:52]}
10. Bb3 {[%clk 0:03:00.2]} 10... Na5 {[%clk 0:02:50.6]} 11. g4 {[%clk
0:02:56.9]} 11... Nxb3+ {[%clk 0:02:40.7]} 12. axb3 {[%clk 0:02:56.8]} 12... Bc6
{[%clk 0:02:28]} 13. f3 {[%clk 0:02:50.5]} 13... Be7 {[%clk 0:02:26.9]} 14. g5
{[%clk 0:02:50.1]} 14... Nd7 {[%clk 0:02:26.8]} 15. h4 {[%clk 0:02:47.3]} 15...
b5 {[%clk 0:02:23.4]} 16. h5 {[%clk 0:02:42.8]} 16... b4 {[%clk 0:02:23.5]} 17.
Na4 {[%clk 0:02:42.9]} 17... Bxa4 {[%clk 0:02:07.9]} 18. bxa4 {[%clk 0:02:43.8]}
18... Nc5 {[%clk 0:02:08.2]} 19. b3 {[%clk 0:01:27.1]} 19... O-O-O {[%clk
0:01:55.2]} 20. Kb1 {[%clk 0:01:21.2]} 20... d5 {[%clk 0:01:53.4]} 21. e5 {[%clk
0:00:56.9]} 21... Kb7 {[%clk 0:01:40.9]} 22. Bc1 {[%clk 0:00:51.8]} 22... Rc8
{[%clk 0:01:35]} 23. Rdg1 {[%clk 0:00:38.4]} 23... Nd7 {[%clk 0:01:25.1]} 24.
Re1 {[%clk 0:00:31.3]} 24... Qb6 {[%clk 0:01:04.9]} 25. Qd1 {[%clk 0:00:21.7]}
25... Rc7 {[%clk 0:00:59.6]} 26. Rh2 {[%clk 0:00:18.8]} 26... Rhc8 {[%clk
0:00:58.9]} 27. Rg2 {[%clk 0:00:15.8]} 27... g6 {[%clk 0:00:58.5]} 28. Rh2
{[%clk 0:00:14.5]} 28... Nb8 {[%clk 0:00:50.6]} 29. hxg6 {[%clk 0:00:13.6]}
29... hxg6 {[%clk 0:00:50.5]} 30. Rh7 {[%clk 0:00:13.7]} 30... Bc5 {[%clk
0:00:49]} 31. Bb2 {[%clk 0:00:14]} 31... Nc6 {[%clk 0:00:48.6]} 32. Nxc6 {[%clk
0:00:12.9]} 32... Qxc6 {[%clk 0:00:48.9]} 33. Re2 {[%clk 0:00:12.1]} 33... Bb6
{[%clk 0:00:44.3]} 34. Qd3 {[%clk 0:00:12]} 34... a5 {[%clk 0:00:41.7]} 35. Reh2
{[%clk 0:00:11.3]} 35... Qc5 {[%clk 0:00:41.4]} 36. Ka2 {[%clk 0:00:10.8]} 36...
Qg1 {[%clk 0:00:31]} 37. f4 {[%clk 0:00:09.2]} 37... Qe3 {[%clk 0:00:28.6]} 38.
Qxe3 {[%clk 0:00:06.2]} 38... Bxe3 {[%clk 0:00:28.6]} 39. R2h4 {[%clk
0:00:05.2]} 39... Rxc2 {[%clk 0:00:24.6]} 40. Rxf7+ {[%clk 0:00:05.1]} 40... Kb6
{[%clk 0:00:22.3]} 41. Rhh7 {[%clk 0:00:04.5]} 41... Bd4 {[%clk 0:00:17.8]} 42.
Rb7+ {[%clk 0:00:02]} 42... Ka6 {[%clk 0:00:18.1]} 0-1

[Event "Early-Titled-Tuesday-Blitz-February-06-2024"]
[Site "Chess.com"]
[Date "2024.02.06"]
[Round "3"]
[White "CSB7"]
[Black "vi_pranav"]
[Result "1/2-1/2"]
[WhiteElo "2752"]
[BlackElo "3045"]
[TimeControl "180+1"]
[EndTime "8:28:01 PST"]
[Termination "Game drawn by repetition"]

1. e4 {[%clk 0:03:00.9]} 1... e5 {[%clk 0:02:59.2]} 2. Nf3 {[%clk 0:03:01.1]}
2... Nc6 {[%clk 0:02:59.4]} 3. Bb5 {[%clk 0:02:59.6]} 3... a6 {[%clk 0:02:59.9]}
4. Ba4 {[%clk 0:02:59.4]} 4... Nf6 {[%clk 0:02:59.7]} 5. O-O {[%clk 0:02:58.8]}
5... b5 {[%clk 0:03:00.1]} 6. Bb3 {[%clk 0:02:58.7]} 6... Bc5 {[%clk 0:03:00.6]}
7. a4 {[%clk 0:02:57.9]} 7... Rb8 {[%clk 0:02:59.5]} 8. c3 {[%clk 0:02:57.8]}
8... d6 {[%clk 0:03:00]} 9. d4 {[%clk 0:02:58.4]} 9... Bb6 {[%clk 0:03:00.7]}
10. a5 {[%clk 0:02:59.1]} 10... Ba7 {[%clk 0:03:00.8]} 11. h3 {[%clk 0:02:59.3]}
11... O-O {[%clk 0:03:01]} 12. Be3 {[%clk 0:02:59.9]} 12... Ra8 {[%clk
0:03:00.5]} 13. Re1 {[%clk 0:02:53.5]} 13... h6 {[%clk 0:02:59.9]} 14. Nbd2
{[%clk 0:02:45.7]} 14... Re8 {[%clk 0:03:00]} 15. Nf1 {[%clk 0:02:22.2]} 15...
exd4 {[%clk 0:02:31.1]} 16. cxd4 {[%clk 0:02:23.1]} 16... Rxe4 {[%clk
0:02:30.1]} 17. Ng3 {[%clk 0:02:22.3]} 17... Re8 {[%clk 0:02:29.9]} 18. Qd2
{[%clk 0:02:10.6]} 18... d5 {[%clk 0:01:16]} 19. Bxh6 {[%clk 0:01:58.8]} 19...
Ne4 {[%clk 0:01:15.8]} 20. Nxe4 {[%clk 0:01:49.5]} 20... dxe4 {[%clk 0:01:16.6]}
21. Ng5 {[%clk 0:01:48.5]} 21... Rf8 {[%clk 0:01:16.2]} 22. Qf4 {[%clk
0:01:26.5]} 22... Qxd4 {[%clk 0:00:31.7]} 23. Bxf7+ {[%clk 0:00:28.1]} 23... Kh8
{[%clk 0:00:31.3]} 24. Re3 {[%clk 0:00:28.7]} 24... Qd6 {[%clk 0:00:08.9]} 25.
Bxg7+ {[%clk 0:00:24.9]} 25... Kxg7 {[%clk 0:00:09]} 26. Ne6+ {[%clk 0:00:25.6]}
26... Bxe6 {[%clk 0:00:05.7]} 27. Rg3+ {[%clk 0:00:25.6]} 27... Bg4 {[%clk
0:00:05.5]} 28. Rxg4+ {[%clk 0:00:17.7]} 28... Kh8 {[%clk 0:00:05.9]} 29. Rh4+
{[%clk 0:00:03.7]} 29... Kg7 {[%clk 0:00:06.2]} 30. Rg4+ {[%clk 0:00:04.3]}
30... Kh8 {[%clk 0:00:06.5]} 31. Rh4+ {[%clk 0:00:02.6]} 31... Kg7 {[%clk
0:00:07]} 32. Rg4+ {[%clk 0:00:03.4]} 1/2-1/2

[Event "Early-Titled-Tuesday-Blitz-February-06-2024"]
[Site "Chess.com"]
[Date "2024.02.06"]
[Round "3"]
[White "Chesstrainer1"]
[Black "Mops_2004"]
[Result "1-0"]
[WhiteElo "2483"]
[BlackElo "2664"]
[TimeControl "180+1"]
[EndTime "8:28:01 PST"]
[Termination "Chesstrainer1 won on time"]

1. e4 {[%clk 0:02:57.4]} 1... c6 {[%clk 0:02:59.8]} 2. d4 {[%clk 0:02:56.8]}
2... d5 {[%clk 0:02:59]} 3. e5 {[%clk 0:02:57.3]} 3... Bf5 {[%clk 0:02:58.4]} 4.
h4 {[%clk 0:02:57.9]} 4... h5 {[%clk 0:02:58.1]} 5. Bd3 {[%clk 0:02:58.4]} 5...
Bxd3 {[%clk 0:02:58.3]} 6. Qxd3 {[%clk 0:02:59.3]} 6... Qa5+ {[%clk 0:02:57.9]}
7. Nd2 {[%clk 0:02:59.8]} 7... e6 {[%clk 0:02:57.5]} 8. Nf3 {[%clk 0:02:58.9]}
8... Nh6 {[%clk 0:02:57.6]} 9. O-O {[%clk 0:02:58.7]} 9... Nf5 {[%clk
0:02:57.7]} 10. Nb3 {[%clk 0:02:54.5]} 10... Qa6 {[%clk 0:02:57.7]} 11. Qd1
{[%clk 0:02:51.9]} 11... b6 {[%clk 0:02:57.6]} 12. a4 {[%clk 0:02:47.1]} 12...
c5 {[%clk 0:02:57.2]} 13. a5 {[%clk 0:02:03.7]} 13... c4 {[%clk 0:02:57]} 14.
axb6 {[%clk 0:02:04]} 14... Qxb6 {[%clk 0:02:57.9]} 15. Na5 {[%clk 0:01:59]}
15... Bb4 {[%clk 0:02:31.5]} 16. Bd2 {[%clk 0:01:57.9]} 16... O-O {[%clk
0:02:19.9]} 17. Bxb4 {[%clk 0:01:41.4]} 17... Qxb4 {[%clk 0:02:19.7]} 18. b3
{[%clk 0:01:40.8]} 18... cxb3 {[%clk 0:02:07.5]} 19. cxb3 {[%clk 0:01:32.4]}
19... Rc8 {[%clk 0:02:06.1]} 20. Ra4 {[%clk 0:01:11.6]} 20... Qc3 {[%clk
0:01:58.9]} 21. Qa1 {[%clk 0:01:02]} 21... Qd3 {[%clk 0:01:35.8]} 22. Rd1 {[%clk
0:00:52.5]} 22... Qe4 {[%clk 0:01:35.4]} 23. Nb7 {[%clk 0:00:49.4]} 23... Nc6
{[%clk 0:01:28.9]} 24. Nd6 {[%clk 0:00:36.8]} 24... Nxd6 {[%clk 0:01:28.6]} 25.
exd6 {[%clk 0:00:37.7]} 25... Qf4 {[%clk 0:01:15.2]} 26. Ne5 {[%clk 0:00:36.9]}
26... Kh7 {[%clk 0:00:20.3]} 27. d7 {[%clk 0:00:24.3]} 27... Nxe5 {[%clk
0:00:20.6]} 28. dxc8=Q {[%clk 0:00:21.3]} 28... Ng4 {[%clk 0:00:20.6]} 29. Qb1+
{[%clk 0:00:18]} 29... g6 {[%clk 0:00:20.5]} 30. Qcc2 {[%clk 0:00:15.1]} 30...
Qh2+ {[%clk 0:00:20.1]} 31. Kf1 {[%clk 0:00:15.5]} 31... Qh1+ {[%clk 0:00:17.4]}
32. Ke2 {[%clk 0:00:15.8]} 32... Qxg2 {[%clk 0:00:18.3]} 33. Rf1 {[%clk
0:00:15]} 33... e5 {[%clk 0:00:16.8]} 34. Qd3 {[%clk 0:00:11]} 34... exd4 {[%clk
0:00:14.7]} 35. Qg3 {[%clk 0:00:11.1]} 35... Re8+ {[%clk 0:00:14.9]} 36. Kd2
{[%clk 0:00:10.9]} 1-0

[Event "Early-Titled-Tuesday-Blitz-February-06-2024"]
[Site "Chess.com"]
[Date "2024.02.06"]
[Round "3"]
[White "Zohid6"]
[Black "Ditman2007"]
[Result "1-0"]
[WhiteElo "2873"]
[BlackElo "2662"]
[TimeControl "180+1"]
[EndTime "8:28:03 PST"]
[Termination "Zohid6 won on time"]

1. e4 {[%clk 0:03:00.9]} 1... e6 {[%clk 0:02:59.2]} 2. d4 {[%clk 0:03:00.8]}
2... d5 {[%clk 0:02:59.4]} 3. Nc3 {[%clk 0:03:01]} 3... Nf6 {[%clk 0:02:59.3]}
4. e5 {[%clk 0:03:00.8]} 4... Nfd7 {[%clk 0:02:59.6]} 5. Nce2 {[%clk 0:03:01.1]}
5... c5 {[%clk 0:02:59.4]} 6. c3 {[%clk 0:03:01.7]} 6... Nc6 {[%clk 0:02:59.4]}
7. Nf3 {[%clk 0:03:02.1]} 7... h6 {[%clk 0:02:57.2]} 8. h4 {[%clk 0:02:58]} 8...
Be7 {[%clk 0:02:54.9]} 9. a3 {[%clk 0:02:57.1]} 9... Qb6 {[%clk 0:02:53.5]} 10.
Nf4 {[%clk 0:02:56.2]} 10... Nf8 {[%clk 0:02:34.6]} 11. Bd3 {[%clk 0:02:51.4]}
11... Bd7 {[%clk 0:02:30]} 12. O-O {[%clk 0:02:29.6]} 12... c4 {[%clk
0:02:29.4]} 13. Bc2 {[%clk 0:02:28.5]} 13... O-O-O {[%clk 0:02:29.5]} 14. b3
{[%clk 0:02:10]} 14... cxb3 {[%clk 0:02:23.1]} 15. Bxb3 {[%clk 0:02:10.9]} 15...
Na5 {[%clk 0:02:23.6]} 16. Bc2 {[%clk 0:02:09.6]} 16... Kb8 {[%clk 0:02:18.5]}
17. Rb1 {[%clk 0:02:09.3]} 17... Qc6 {[%clk 0:02:18.5]} 18. Bd3 {[%clk
0:02:00.7]} 18... g5 {[%clk 0:02:12.3]} 19. Nh5 {[%clk 0:01:52.2]} 19... gxh4
{[%clk 0:01:58.9]} 20. Ne1 {[%clk 0:01:32.6]} 20... Nh7 {[%clk 0:01:40.6]} 21.
Bxh6 {[%clk 0:01:25.3]} 21... Ng5 {[%clk 0:01:32.8]} 22. Bg7 {[%clk 0:01:24.5]}
22... Rhg8 {[%clk 0:01:29.2]} 23. Bf6 {[%clk 0:01:12.9]} 23... Bxf6 {[%clk
0:01:07.6]} 24. Nxf6 {[%clk 0:01:13.8]} 24... Rg7 {[%clk 0:01:08.1]} 25. Qh5
{[%clk 0:00:53.4]} 25... Nh3+ {[%clk 0:00:43]} 26. Kh1 {[%clk 0:00:42.7]} 26...
Nf4 {[%clk 0:00:42.5]} 27. Qh6 {[%clk 0:00:42.9]} 27... Nxd3 {[%clk 0:00:42.5]}
28. Qxg7 {[%clk 0:00:43.2]} 28... Nf4 {[%clk 0:00:19.8]} 29. Qxf7 {[%clk
0:00:40.1]} 29... Bc8 {[%clk 0:00:20.2]} 30. Nf3 {[%clk 0:00:32.9]} 30... h3
{[%clk 0:00:20.4]} 31. g3 {[%clk 0:00:30.1]} 31... Qxc3 {[%clk 0:00:20.6]} 32.
Ng1 {[%clk 0:00:25.5]} 32... Ne2 {[%clk 0:00:15.4]} 33. Kh2 {[%clk 0:00:16.1]}
33... Nxd4 {[%clk 0:00:13.5]} 34. Rbc1 {[%clk 0:00:14.7]} 34... Qd3 {[%clk
0:00:11.6]} 35. Qc7+ {[%clk 0:00:14.3]} 35... Ka8 {[%clk 0:00:11.1]} 36. Qxc8+
{[%clk 0:00:15.2]} 1-0

[Event "Early-Titled-Tuesday-Blitz-February-06-2024"]
[Site "Chess.com"]
[Date "2024.02.06"]
[Round "3"]
[White "BillieKimbah"]
[Black "PepeCuenca"]
[Result "1-0"]
[WhiteElo "2941"]
[BlackElo "2711"]
[TimeControl "180+1"]
[EndTime "8:28:05 PST"]
[Termination "BillieKimbah won on time"]

1. d4 {[%clk 0:03:00.9]} 1... d5 {[%clk 0:02:56.6]} 2. Nf3 {[%clk 0:03:01.4]}
2... Nf6 {[%clk 0:02:56.4]} 3. Bg5 {[%clk 0:03:01.6]} 3... Ne4 {[%clk
0:02:54.9]} 4. Bh4 {[%clk 0:03:01.7]} 4... c5 {[%clk 0:02:40.1]} 5. e3 {[%clk
0:03:00.5]} 5... Nc6 {[%clk 0:02:34.3]} 6. Nbd2 {[%clk 0:02:59.8]} 6... Nxd2
{[%clk 0:02:31.8]} 7. Qxd2 {[%clk 0:03:00.7]} 7... cxd4 {[%clk 0:02:27.9]} 8.
exd4 {[%clk 0:02:59.9]} 8... Bg4 {[%clk 0:02:21.2]} 9. Ne5 {[%clk 0:02:55.1]}
9... Nxe5 {[%clk 0:02:00.5]} 10. dxe5 {[%clk 0:02:56]} 10... Qd7 {[%clk
0:02:00.9]} 11. Bd3 {[%clk 0:02:35.2]} 11... Bh5 {[%clk 0:01:22.6]} 12. O-O
{[%clk 0:02:01.3]} 12... e6 {[%clk 0:01:19.3]} 13. Rae1 {[%clk 0:01:17.6]} 13...
Bc5 {[%clk 0:01:14.5]} 14. Kh1 {[%clk 0:01:12.1]} 14... Bg6 {[%clk 0:01:09.4]}
15. f4 {[%clk 0:01:10.1]} 15... Bxd3 {[%clk 0:01:08.2]} 16. Qxd3 {[%clk
0:01:05.6]} 16... Be7 {[%clk 0:00:48.2]} 17. Bxe7 {[%clk 0:00:54.2]} 17... Qxe7
{[%clk 0:00:49.1]} 18. f5 {[%clk 0:00:54.4]} 18... O-O-O {[%clk 0:00:49]} 19. f6
{[%clk 0:00:50]} 19... gxf6 {[%clk 0:00:47]} 20. Rxf6 {[%clk 0:00:50.7]} 20...
Qc7 {[%clk 0:00:37.9]} 21. c3 {[%clk 0:00:46.2]} 21... Kb8 {[%clk 0:00:36.4]}
22. Qd4 {[%clk 0:00:41.1]} 22... Rhg8 {[%clk 0:00:33]} 23. Ref1 {[%clk
0:00:41.3]} 23... Rd7 {[%clk 0:00:30.1]} 24. Qf4 {[%clk 0:00:41.3]} 24... Rc8
{[%clk 0:00:11.8]} 25. h3 {[%clk 0:00:38.8]} 25... a6 {[%clk 0:00:10.6]} 26.
Rxf7 {[%clk 0:00:34.1]} 26... Rxf7 {[%clk 0:00:10.6]} 27. Qxf7 {[%clk 0:00:35]}
27... Qxe5 {[%clk 0:00:11.2]} 28. Qxh7 {[%clk 0:00:35.3]} 28... Rc7 {[%clk
0:00:06.7]} 29. Qh4 {[%clk 0:00:27.1]} 29... Ka7 {[%clk 0:00:02.4]} 30. Qd4+
{[%clk 0:00:24.2]} 30... Qxd4 {[%clk 0:00:02.7]} 31. cxd4 {[%clk 0:00:25.1]}
31... Rc2 {[%clk 0:00:03.1]} 32. h4 {[%clk 0:00:23.5]} 32... Rxb2 {[%clk
0:00:03.4]} 33. h5 {[%clk 0:00:24]} 33... Rd2 {[%clk 0:00:03.1]} 34. Rf4 {[%clk
0:00:23.4]} 34... b5 {[%clk 0:00:02.3]} 35. h6 {[%clk 0:00:23.5]} 35... Rc2
{[%clk 0:00:02.5]} 36. g4 {[%clk 0:00:13.7]} 36... Rc8 {[%clk 0:00:02.1]} 37. g5
{[%clk 0:00:13.7]} 37... Rg8 {[%clk 0:00:02.3]} 38. h7 {[%clk 0:00:10.5]} 1-0

[Event "Early-Titled-Tuesday-Blitz-February-06-2024"]
[Site "Chess.com"]
[Date "2024.02.06"]
[Round "3"]
[White "MFatigue"]
[Black "ArmanGhevondyanchess"]
[Result "1-0"]
[WhiteElo "2453"]
[BlackElo "2635"]
[TimeControl "180+1"]
[EndTime "8:28:05 PST"]
[Termination "MFatigue won by checkmate"]

1. e4 {[%clk 0:03:00.9]} 1... c5 {[%clk 0:02:56.3]} 2. a3 {[%clk 0:03:00.9]}
2... Nc6 {[%clk 0:02:53.6]} 3. b4 {[%clk 0:03:01.1]} 3... cxb4 {[%clk 0:02:50]}
4. axb4 {[%clk 0:03:02]} 4... Nxb4 {[%clk 0:02:50.7]} 5. c3 {[%clk 0:03:02.6]}
5... Nc6 {[%clk 0:02:50.2]} 6. d4 {[%clk 0:03:03.5]} 6... d6 {[%clk 0:02:48.8]}
7. d5 {[%clk 0:03:01.8]} 7... Ne5 {[%clk 0:02:48.3]} 8. Qd4 {[%clk 0:03:01.7]}
8... a6 {[%clk 0:02:45.8]} 9. f4 {[%clk 0:02:58.6]} 9... Ng6 {[%clk 0:02:43.9]}
10. Nf3 {[%clk 0:02:59.2]} 10... e6 {[%clk 0:02:41.3]} 11. c4 {[%clk 0:02:36.9]}
11... Be7 {[%clk 0:02:22.8]} 12. Nc3 {[%clk 0:02:29.7]} 12... e5 {[%clk
0:02:16.6]} 13. fxe5 {[%clk 0:02:18.4]} 13... Nxe5 {[%clk 0:02:10.8]} 14. Nxe5
{[%clk 0:02:04.9]} 14... Bh4+ {[%clk 0:02:10.2]} 15. g3 {[%clk 0:02:02.5]} 15...
Bf6 {[%clk 0:02:10.3]} 16. Bf4 {[%clk 0:01:57.1]} 16... g5 {[%clk 0:02:10]} 17.
Qd3 {[%clk 0:01:48.3]} 17... gxf4 {[%clk 0:02:02.1]} 18. Nf3 {[%clk 0:01:48.8]}
18... fxg3 {[%clk 0:01:50.1]} 19. hxg3 {[%clk 0:01:49.7]} 19... Bg4 {[%clk
0:01:50.4]} 20. Nd4 {[%clk 0:01:46.4]} 20... Ne7 {[%clk 0:01:44.8]} 21. Be2
{[%clk 0:01:37]} 21... Bxe2 {[%clk 0:01:40]} 22. Ncxe2 {[%clk 0:01:37.9]} 22...
Qd7 {[%clk 0:01:36.4]} 23. Rb1 {[%clk 0:01:21.2]} 23... O-O-O {[%clk 0:01:34.1]}
24. Kd2 {[%clk 0:01:13.6]} 24... Rde8 {[%clk 0:01:28.9]} 25. Rhc1 {[%clk
0:01:07.1]} 25... Bg5+ {[%clk 0:01:25.7]} 26. Nf4 {[%clk 0:01:06.9]} 26... Ng6
{[%clk 0:01:25.5]} 27. Ne2 {[%clk 0:01:05.5]} 27... f5 {[%clk 0:01:21.6]} 28.
exf5 {[%clk 0:00:55]} 28... Rxe2+ {[%clk 0:01:14.8]} 29. Qxe2 {[%clk 0:00:43.8]}
29... Nxf4 {[%clk 0:01:12]} 30. Qg4 {[%clk 0:00:35.4]} 30... Nh5+ {[%clk
0:00:49.7]} 31. Qxg5 {[%clk 0:00:33.7]} 31... Ng7 {[%clk 0:00:42]} 32. f6 {[%clk
0:00:17.7]} 32... Nf5 {[%clk 0:00:42.1]} 33. g4 {[%clk 0:00:15.5]} 33... Nd4
{[%clk 0:00:41.2]} 34. Kd3 {[%clk 0:00:13.8]} 34... Nf3 {[%clk 0:00:40.3]} 35.
Qg7 {[%clk 0:00:14.3]} 35... Ne5+ {[%clk 0:00:38]} 36. Kd4 {[%clk 0:00:13.4]}
36... Nf7 {[%clk 0:00:35.8]} 37. Re1 {[%clk 0:00:11.8]} 37... Rd8 {[%clk
0:00:28.1]} 38. Re7 {[%clk 0:00:12.2]} 38... Qa4 {[%clk 0:00:25.8]} 39. Qxf7
{[%clk 0:00:11.4]} 39... Qa5 {[%clk 0:00:19.2]} 40. Qe6+ {[%clk 0:00:07.4]}
40... Kb8 {[%clk 0:00:17.8]} 41. Rbxb7+ {[%clk 0:00:06.6]} 41... Ka8 {[%clk
0:00:18.7]} 42. Ra7+ {[%clk 0:00:07.3]} 42... Kb8 {[%clk 0:00:19.6]} 43. Reb7#
{[%clk 0:00:07.8]} 1-0

[Event "Early-Titled-Tuesday-Blitz-February-06-2024"]
[Site "Chess.com"]
[Date "2024.02.06"]
[Round "3"]
[White "ljuks68"]
[Black "Ind1anStar"]
[Result "0-1"]
[WhiteElo "2414"]
[BlackElo "2608"]
[TimeControl "180+1"]
[EndTime "8:28:05 PST"]
[Termination "Ind1anStar won on time"]

1. e4 {[%clk 0:02:53.9]} 1... e6 {[%clk 0:02:59.9]} 2. d4 {[%clk 0:02:53.8]}
2... d5 {[%clk 0:02:59.8]} 3. Nc3 {[%clk 0:02:54.4]} 3... Nf6 {[%clk 0:02:58.6]}
4. Bg5 {[%clk 0:02:54.5]} 4... Be7 {[%clk 0:02:55.3]} 5. e5 {[%clk 0:02:54.6]}
5... Nfd7 {[%clk 0:02:55.1]} 6. h4 {[%clk 0:02:55.1]} 6... Nc6 {[%clk
0:02:52.1]} 7. Bxe7 {[%clk 0:02:43.6]} 7... Qxe7 {[%clk 0:02:53]} 8. Qg4 {[%clk
0:02:43.9]} 8... f5 {[%clk 0:02:53.2]} 9. Qf4 {[%clk 0:02:41.8]} 9... Qb4 {[%clk
0:02:48.6]} 10. O-O-O {[%clk 0:02:41.2]} 10... Ndxe5 {[%clk 0:01:59.5]} 11. Nb5
{[%clk 0:01:35.4]} 11... O-O {[%clk 0:01:42.1]} 12. a3 {[%clk 0:01:23.8]} 12...
Ng6 {[%clk 0:01:38.4]} 13. Qxc7 {[%clk 0:01:03.9]} 13... Qe7 {[%clk 0:01:36.4]}
14. h5 {[%clk 0:01:00.5]} 14... Nh8 {[%clk 0:01:36.4]} 15. Qxe7 {[%clk
0:00:50.3]} 15... Nxe7 {[%clk 0:01:36.7]} 16. Re1 {[%clk 0:00:47.8]} 16... Rf6
{[%clk 0:01:16.5]} 17. Ne2 {[%clk 0:00:39.4]} 17... Bd7 {[%clk 0:01:16.5]} 18.
Nbc3 {[%clk 0:00:36]} 18... Nf7 {[%clk 0:01:13.9]} 19. Nf4 {[%clk 0:00:35.2]}
19... Nd6 {[%clk 0:01:14]} 20. f3 {[%clk 0:00:26.3]} 20... Nc6 {[%clk
0:01:13.5]} 21. Rd1 {[%clk 0:00:26.4]} 21... Rc8 {[%clk 0:01:01.8]} 22. Be2
{[%clk 0:00:26]} 22... Be8 {[%clk 0:00:48.7]} 23. Rhe1 {[%clk 0:00:24.2]} 23...
Bf7 {[%clk 0:00:47.5]} 24. Bf1 {[%clk 0:00:22]} 24... a6 {[%clk 0:00:45.4]} 25.
g3 {[%clk 0:00:19.3]} 25... b5 {[%clk 0:00:44.7]} 26. Nce2 {[%clk 0:00:14.2]}
26... Nc4 {[%clk 0:00:39.3]} 27. Nc3 {[%clk 0:00:10.3]} 27... b4 {[%clk
0:00:37.3]} 28. axb4 {[%clk 0:00:09.8]} 28... Nxb4 {[%clk 0:00:38]} 29. Bxc4
{[%clk 0:00:09.8]} 29... Rxc4 {[%clk 0:00:36.7]} 30. Rd2 {[%clk 0:00:07.8]}
30... g5 {[%clk 0:00:32.2]} 31. hxg6 {[%clk 0:00:07.1]} 31... hxg6 {[%clk
0:00:32.8]} 32. Nh3 {[%clk 0:00:06.9]} 32... Kg7 {[%clk 0:00:31.4]} 33. Ng5
{[%clk 0:00:06.9]} 33... Bg8 {[%clk 0:00:31.8]} 34. f4 {[%clk 0:00:04.7]} 34...
Nc6 {[%clk 0:00:19]} 35. Ne2 {[%clk 0:00:02]} 35... Rf8 {[%clk 0:00:18.3]} 36.
c3 {[%clk 0:00:01.9]} 36... Rb8 {[%clk 0:00:18.3]} 0-1

[Event "Early-Titled-Tuesday-Blitz-February-06-2024"]
[Site "Chess.com"]
[Date "2024.02.06"]
[Round "3"]
[White "HeroWilczek"]
[Black "GothamChess"]
[Result "1-0"]
[WhiteElo "2490"]
[BlackElo "2703"]
[TimeControl "180+1"]
[EndTime "8:28:08 PST"]
[Termination "HeroWilczek won on time"]

1. e4 {[%clk 0:03:00.9]} 1... e6 {[%clk 0:02:58.1]} 2. d4 {[%clk 0:03:00.1]}
2... d5 {[%clk 0:02:46.8]} 3. Nc3 {[%clk 0:03:00.4]} 3... dxe4 {[%clk
0:02:47.1]} 4. Nxe4 {[%clk 0:03:01.3]} 4... Nf6 {[%clk 0:02:47.6]} 5. Nxf6+
{[%clk 0:03:00.3]} 5... gxf6 {[%clk 0:02:48.5]} 6. Nf3 {[%clk 0:03:00]} 6... Nc6
{[%clk 0:02:48.2]} 7. c3 {[%clk 0:03:00]} 7... e5 {[%clk 0:02:48.3]} 8. Bb5
{[%clk 0:02:52.3]} 8... Qd5 {[%clk 0:02:46.1]} 9. Bxc6+ {[%clk 0:02:48.9]} 9...
Qxc6 {[%clk 0:02:43.6]} 10. Be3 {[%clk 0:02:30.5]} 10... Rg8 {[%clk 0:02:38.3]}
11. Rg1 {[%clk 0:02:10.7]} 11... Bg4 {[%clk 0:02:32.2]} 12. d5 {[%clk 0:02:07]}
12... Qb5 {[%clk 0:02:28.7]} 13. h3 {[%clk 0:01:53.4]} 13... Bxf3 {[%clk
0:01:56.9]} 14. Qxf3 {[%clk 0:01:54.3]} 14... Qxb2 {[%clk 0:01:57]} 15. Rc1
{[%clk 0:01:46.1]} 15... O-O-O {[%clk 0:01:53]} 16. g3 {[%clk 0:01:43.3]} 16...
Bc5 {[%clk 0:01:45.3]} 17. Kf1 {[%clk 0:01:36.8]} 17... Bxe3 {[%clk 0:01:43.2]}
18. Qxe3 {[%clk 0:01:37.7]} 18... Rxd5 {[%clk 0:01:30.3]} 19. Kg2 {[%clk
0:01:38.3]} 19... Qd2 {[%clk 0:01:26.7]} 20. Qxa7 {[%clk 0:01:32]} 20... Rgd8
{[%clk 0:00:23]} 21. Qa8+ {[%clk 0:01:11.5]} 21... Kd7 {[%clk 0:00:22.4]} 22.
Qxb7 {[%clk 0:01:12.2]} 22... Qd3 {[%clk 0:00:07.6]} 23. c4 {[%clk 0:01:04.5]}
23... Qe4+ {[%clk 0:00:04.5]} 24. Kh2 {[%clk 0:00:57]} 24... Rd4 {[%clk
0:00:03.2]} 25. Qxe4 {[%clk 0:00:54.9]} 25... Rxe4 {[%clk 0:00:03.6]} 26. Rgd1+
{[%clk 0:00:54.7]} 26... Rd4 {[%clk 0:00:04.1]} 27. Kg2 {[%clk 0:00:53]} 27...
c5 {[%clk 0:00:04.3]} 28. Rb1 {[%clk 0:00:51.4]} 28... Kc6 {[%clk 0:00:04.8]}
29. Rdc1 {[%clk 0:00:49.2]} 29... Ra8 {[%clk 0:00:04.3]} 30. Rb2 {[%clk
0:00:48.4]} 30... Ra4 {[%clk 0:00:05]} 31. Rcb1 {[%clk 0:00:48.2]} 31... Raxc4
{[%clk 0:00:04.6]} 32. Rb6+ {[%clk 0:00:48.8]} 32... Kd5 {[%clk 0:00:05.3]} 33.
Rxf6 {[%clk 0:00:47.9]} 33... Rc2 {[%clk 0:00:05.9]} 34. Rxf7 {[%clk 0:00:44.7]}
34... Rxa2 {[%clk 0:00:03.7]} 35. Rxh7 {[%clk 0:00:41.7]} 35... c4 {[%clk
0:00:04.2]} 36. Rd7+ {[%clk 0:00:40.1]} 36... Ke4 {[%clk 0:00:04.4]} 37. Re1+
{[%clk 0:00:39.5]} 37... Kd3 {[%clk 0:00:04.8]} 38. Rc7 {[%clk 0:00:36.5]} 38...
c3 {[%clk 0:00:02.6]} 39. Re3+ {[%clk 0:00:36.3]} 39... Kd2 {[%clk 0:00:01.9]}
40. Rcxc3 {[%clk 0:00:36.6]} 40... e4 {[%clk 0:00:02.3]} 41. Rc6 {[%clk
0:00:33.6]} 41... Kd1 {[%clk 0:00:01.9]} 42. Rf6 {[%clk 0:00:31.9]} 42... Kd2
{[%clk 0:00:02]} 43. Rf4 {[%clk 0:00:31.4]} 43... Raa4 {[%clk 0:00:01.7]} 44. h4
{[%clk 0:00:31.5]} 44... Kd1 {[%clk 0:00:01.1]} 45. g4 {[%clk 0:00:31.7]} 45...
Kd2 {[%clk 0:00:01.4]} 46. Kg3 {[%clk 0:00:32.3]} 46... Rd3 {[%clk 0:00:01.6]}
47. Rxd3+ {[%clk 0:00:30]} 47... Kxd3 {[%clk 0:00:02.5]} 48. f3 {[%clk
0:00:26.9]} 1-0